bitfinex-derivatives/quotes_ETHF0:USTF0_20250702
["timestamp","ask_amount","ask_price","bid_price","bid_amount"]
[1751448880971,25.58384,2447.9,2447.8,0.81685]
[1751448881474,25.58384,2447.9,2447.6,3.71132781]
[1751448881475,0.81695,2447.6,2447.5,0.81692]
[1751448882374,0.81695,2447.5,2447.4,1.79086]
[1751448885973,0.81695,2447.5,2447.4,0.9739]
[1751448886175,29.14405781,2447.5,2447.1,0.9295]
[1751448886376,0.81711,2447.1,2447.0,0.81708]
[1751448889485,5.38227,2447.4,2446.9,2.33962781]
[1751448889486,0.81708,2447.2,2447.1,0.81704]
[1751448889781,0.81708,2447.2,2447.1,3.15666781]
[1751448891182,0.81708,2447.2,2447.1,0.81704]
[1751448891480,0.81708,2447.2,2447.1,3.15666781]
[1751448893685,0.81708,2447.2,2447.1,0.81704]
[1751448894085,0.81712,2447.1,2447.0,0.8171]
[1751448895281,0.81708,2447.2,2447.1,0.81705]
[1751448897286,0.81708,2447.2,2447.1,3.15667781]
[1751448898983,0.81703,2447.3,2447.2,0.81702]
[1751448899186,25.56803,2447.3,2447.2,0.81702]
[1751448899387,25.56803,2447.3,2447.2,1.73312]
[1751448899789,1.7827,2447.4,2447.3,0.81702]
[1751448900089,1.7827,2447.4,2447.3,3.15664781]
[1751448900285,0.817,2447.4,2447.3,3.15664781]
[1751448900583,0.81702,2447.3,2447.2,0.81703]
[1751448902391,0.81702,2447.3,2447.2,4.06585781]
[1751448902587,0.81701,2447.4,2447.3,0.81697]
[1751448902786,25.57497,2447.5,2447.4,0.81695]
[1751448902986,5.902,2447.6,2447.5,0.81695]
[1751448903184,0.8169,2447.7,2447.6,0.81692]
[1751448903391,0.8169,2447.7,2447.6,3.15654781]
[1751448903689,0.81688,2447.8,2447.7,0.81685]
[1751448904191,0.81688,2447.8,2447.7,1.72605]
[1751448909594,1.81715,2447.9,2447.8,0.81685]
[1751448909795,26.56715,2447.9,2447.8,0.81685]
[1751448910297,26.56715,2447.9,2447.8,3.15647781]
[1751448911398,11.51412132,2448.0,2447.9,0.81682]
[1751448912396,12.33091132,2448.0,2447.9,0.81682]
[1751448912798,0.00612132,2448.0,2447.9,0.81682]
[1751448913198,0.00612132,2448.0,2447.9,2.18072]
[1751448928110,0.00612132,2448.0,2447.9,3.15644781]
[1751448930305,12.31464,2448.5,2448.4,0.81665]
[1751448930510,37.97944,2448.5,2448.4,0.81665]
[1751448931504,39.34144,2448.5,2448.4,0.81665]
[1751448931708,27.84244,2448.5,2448.4,0.81665]
[1751448933924,0.81669,2448.4,2448.3,0.81665]
[1751448934115,2.23519,2448.4,2448.3,0.81665]
[1751448936219,26.94919,2448.4,2448.3,0.81665]
[1751448936421,24.714,2448.4,2448.3,0.81665]
[1751448936822,25.53065,2448.4,2448.3,0.81665]
[1751448937023,0.81665,2448.4,2448.3,0.81665]
[1751448937224,25.52865,2448.4,2448.3,0.81665]
[1751448942226,0.81665,2448.4,2448.3,0.81665]
[1751448942527,26.46043,2448.5,2448.4,0.81665]
[1751448945335,1.75642,2448.5,2448.4,0.81665]
[1751448945532,26.45542,2448.5,2448.4,0.81665]
[1751448947033,27.90352,2448.5,2448.4,0.81665]
[1751448949133,27.0869,2448.5,2448.1,0.9309]
[1751448949332,0.81672,2448.3,2448.2,0.81668]
[1751448950024,2.19572,2448.3,2448.2,0.81668]
[1751448950225,0.81686,2447.9,2447.8,0.81682]
[1751448950431,25.51486,2447.9,2447.8,0.81682]
[1751448950730,27.76916,2447.9,2447.8,0.81682]
[1751448956841,0.81685,2447.8,2447.7,0.81687]
[1751448957042,2.23325,2447.8,2447.7,0.81687]
[1751448957341,0.81692,2447.7,2447.6,0.81689]
[1751448957642,2.23332,2447.7,2447.6,0.81689]
[1751448958143,0.81695,2447.6,2447.5,0.81692]
[1751448958343,27.90205,2447.6,2447.5,0.81692]
[1751448960645,27.90205,2447.6,2447.5,3.15654781]
[1751448961942,0.81698,2447.4,2447.3,0.9712]
[1751448962147,2.04247,2447.4,2447.0,3.25782781]
[1751448962445,0.81709,2447.1,2447.0,4.07490781]
[1751448962638,0.81708,2447.2,2447.1,0.81705]
[1751448962934,0.81708,2447.2,2447.1,1.81295]
[1751448963135,26.52814,2447.3,2447.2,0.81705]
[1751448963535,0.817,2447.4,2447.3,0.81702]
[1751448964143,6.71898,2447.5,2447.4,3.15660781]
[1751448964342,31.43798,2447.5,2447.4,3.15660781]
[1751448964840,31.45098,2447.5,2447.4,3.15660781]
[1751448965238,25.54898,2447.5,2447.4,3.15660781]
[1751448965942,25.54598,2447.5,2447.4,2.33962781]
[1751448966143,25.54598,2447.5,2447.4,3.15661781]
[1751448966846,25.54398,2447.5,2447.4,3.15661781]
[1751448968347,0.81702,2447.4,2447.3,0.81699]
[1751448969747,0.81702,2447.4,2447.1,3.33552781]
[1751448969748,0.81705,2447.3,2447.2,0.81705]
[1751448969947,1.81915,2447.3,2447.2,0.81705]
[1751448976149,0.81702,2447.4,2447.3,3.15661781]
[1751448976344,1.75802,2447.4,2447.3,0.81699]
[1751448976552,0.81705,2447.2,2447.1,4.15258781]
[1751448983949,2.2796,2447.4,2447.1,3.33552781]
[1751448984150,0.941,2447.4,2447.3,3.15664781]
[1751448984456,25.659,2447.4,2447.3,3.15664781]
[1751448985456,0.81705,2447.3,2447.2,3.15664781]
[1751449001580,0.81705,2447.2,2447.1,0.9959]
[1751449002571,0.81705,2447.2,2447.1,1.81297]
[1751449002776,0.81705,2447.2,2447.1,4.15259781]
[1751449009177,0.81705,2447.3,2447.2,0.81702]
[1751449009382,25.52805,2447.3,2447.2,0.81702]
[1751449010484,0.81705,2447.2,2447.1,4.15258781]
[1751449012479,0.81705,2447.2,2447.1,1.81296]
[1751449012783,1.72365,2447.2,2447.1,1.81296]
[1751449014883,0.9066,2447.2,2446.8,0.81715]
[1751449015182,0.81722,2446.7,2446.6,0.9542]
[1751449015478,0.81722,2446.7,2446.6,4.21812781]
[1751449016184,0.81722,2446.7,2446.6,5.03537781]
[1751449016985,1.72591,2446.8,2446.7,0.81722]
[1751449017185,0.81721,2446.8,2446.7,0.81722]
[1751449018379,0.81721,2446.8,2446.7,3.15684781]
[1751449018579,0.81721,2446.8,2446.7,0.81722]
[1751449018783,0.81721,2446.8,2446.7,3.15684781]
[1751449023086,25.52817,2446.9,2446.8,0.81719]
[1751449023385,24.712,2447.0,2446.7,2.04305]
[1751449023586,24.712,2447.0,2446.9,0.81715]
[1751449023980,24.712,2447.0,2446.9,1.72945]
[1751449024189,25.5291,2447.1,2447.0,0.81712]
[1751449024490,25.5291,2447.1,2447.0,1.76922]
[1751449025496,24.712,2447.1,2447.0,1.76922]
[1751449025689,24.712,2447.1,2447.0,4.10884781]
[1751449026091,25.52909,2447.1,2447.0,4.10884781]
[1751449026390,24.712,2447.1,2447.0,4.10884781]
[1751449026592,37.01507,2447.2,2447.1,0.81709]
[1751449027584,38.53762781,2447.2,2446.9,0.9123]
[1751449027788,0.81712,2447.0,2446.9,0.81713]
[1751449028290,0.81718,2446.9,2446.8,0.81716]
[1751449029893,0.81718,2446.9,2446.8,3.15678781]
[1751449030595,0.81722,2446.8,2446.7,0.81719]
[1751449030893,1.73032,2446.8,2446.7,0.81719]
[1751449032284,1.73029,2446.8,2446.7,0.81719]
[1751449032489,13.21624,2447.1,2447.0,0.81709]
[1751449032690,37.92924,2447.1,2447.0,3.15671781]
[1751449035489,0.81712,2447.0,2446.9,0.81713]
[1751449035694,2.04297,2446.9,2446.3,2.11450453]
[1751449035903,0.81728,2446.6,2446.5,0.81725]
[1751449037688,0.81728,2446.6,2446.4,3.26282781]
[1751449037689,27.0173,2446.8,2446.4,3.26282781]
[1751449037894,0.9109,2446.8,2446.7,3.15684781]
[1751449038191,2.04261,2447.3,2446.7,3.15684781]
[1751449038192,0.81715,2447.0,2446.9,0.81712]
[1751449038396,25.53015,2447.0,2446.9,3.15674781]
[1751449038790,25.53015,2447.0,2446.9,0.81712]
[1751449040195,0.8172,2446.8,2446.7,0.81718]
[1751449040597,0.81722,2446.8,2446.7,0.81718]
[1751449045098,1.74817,2446.9,2446.8,0.81718]
[1751449045298,26.46117,2446.9,2446.8,0.81718]
[1751449048802,26.46117,2446.9,2446.3,2.33962781]
[1751449048803,2.04311,2446.7,2446.3,2.33962781]
[1751449049006,0.81732,2446.5,2446.4,0.81729]
[1751449049901,0.81732,2446.4,2446.3,1.79483]
[1751449050297,0.81732,2446.4,2446.3,4.13445781]
[1751449053699,0.81731,2446.5,2446.4,0.81728]
[1751449053905,26.48748,2446.6,2446.5,0.81728]
[1751449060007,0.81735,2446.4,2446.3,0.81731]
[1751449060304,0.81735,2446.4,2446.3,1.80271]
[1751449061802,0.81735,2446.4,2446.3,0.81731]
[1751449062004,0.81735,2446.4,2446.3,3.15693781]
[1751449069606,25.53431,2446.5,2446.4,0.81732]
[1751449072316,0.81735,2446.4,2446.3,0.81733]
[1751449075120,0.81735,2446.4,2446.3,0.81735]
[1751449076320,0.81735,2446.3,2446.2,2.70406]
[1751449076516,1.81375,2446.3,2446.2,1.8867]
[1751449076715,0.81742,2446.1,2446.0,31.0]
[1751449077420,2.18852,2446.1,2446.0,31.0]
[1751449081015,25.53542,2446.1,2446.0,31.0]
[1751449082221,0.81741,2446.2,2446.0,31.0]
[1751449082421,12.30641,2446.2,2446.1,3.15701781]
[1751449082624,13.30279,2446.3,2446.2,0.81739]
[1751449082823,38.02179,2446.3,2446.2,0.81739]
[1751449083421,0.81739,2446.2,2446.1,4.10821781]
[1751449085623,38.02177,2446.3,2446.2,0.81739]
[1751449088725,1.81377,2446.3,2446.2,0.81739]
[1751449088929,5.902,2446.4,2446.3,0.81735]
[1751449089128,12.4875,2446.7,2446.6,0.81725]
[1751449089531,37.2055,2446.7,2446.6,0.81725]
[1751449090129,38.02274,2446.7,2446.6,0.81725]
[1751449093836,0.81725,2446.6,2446.5,1.72796]
[1751449094035,0.81725,2446.6,2446.5,0.9107]
[1751449094235,25.53425,2446.6,2446.5,0.9107]
[1751449094434,25.53425,2446.6,2446.5,1.72798]
[1751449094931,25.53425,2446.6,2446.5,0.9107]
[1751449095637,25.53425,2446.6,2446.4,1.79009]
[1751449095638,0.81735,2446.4,2446.3,0.81732]
[1751449095935,25.53335,2446.4,2446.3,0.81732]
[1751449098641,0.81735,2446.4,2446.3,0.81732]
[1751449098936,25.53335,2446.4,2446.3,0.81732]
[1751449099137,24.716,2446.4,2446.3,0.81732]
[1751449099336,25.53332,2446.4,2446.3,0.81732]
[1751449099538,11.487,2446.6,2446.5,0.81728]
[1751449099736,25.53225,2446.6,2446.5,0.81728]
[1751449102642,1.81574,2446.7,2446.6,0.81725]
[1751449102842,26.53074,2446.7,2446.6,0.81725]
[1751449103240,70.322,2446.8,2446.6,0.81725]
[1751449103241,71.13918,2446.8,2446.7,0.81722]
[1751449103440,95.85418,2446.8,2446.7,0.81722]
[1751449103642,0.81725,2446.6,2446.5,1.72627]
[1751449103941,25.53225,2446.6,2446.5,1.72627]
[1751449104342,26.42855,2446.6,2446.5,0.909]
[1751449104541,26.42855,2446.6,2446.2,4.38301781]
[1751449104542,0.81739,2446.3,2446.1,0.9344]
[1751449104743,25.53139,2446.2,2446.1,1.8434]
[1751449105040,0.81742,2446.1,2446.0,31.0]
[1751449105635,0.81742,2446.1,2446.0,31.81745]
[1751449107246,0.81742,2446.1,2446.0,31.0]
[1751449107442,0.81742,2446.1,2446.0,31.81745]
[1751449110646,0.81742,2446.1,2446.0,31.0]
[1751449111547,0.81742,2446.1,2446.0,31.81745]
[1751449113049,0.81742,2446.1,2446.0,31.0]
[1751449113249,0.81742,2446.1,2446.0,31.81745]
[1751449113548,0.81742,2446.1,2446.0,31.0]
[1751449114347,0.81742,2446.1,2446.0,31.81745]
[1751449114548,5.902,2446.3,2446.0,31.0]
[1751449114748,24.717,2446.2,2446.0,33.33962781]
[1751449115051,0.81742,2446.1,2446.0,31.81744]
[1751449116052,26.48841,2446.2,2446.1,0.81742]
[1751449118352,0.81742,2446.1,2446.0,31.81743]
[1751449118544,26.48841,2446.2,2446.1,0.81742]
[1751449121554,24.717,2446.2,2446.1,0.81742]
[1751449121754,24.717,2446.2,2446.1,1.77712]
[1751449122255,0.81739,2446.3,2446.2,0.81736]
[1751449122456,25.54739,2446.3,2446.2,1.74626]
[1751449122757,0.9235,2446.4,2446.3,0.81735]
[1751449122956,37.95684,2446.4,2446.3,0.81735]
[1751449123254,0.81735,2446.3,2446.2,1.74626]
[1751449123751,0.81735,2446.3,2446.2,0.9289]
[1751449123955,0.81739,2446.2,2446.1,1.7771]
[1751449124154,25.54739,2446.2,2446.1,1.7771]
[1751449128158,15.84143,2446.4,2446.2,0.81735]
[1751449128159,2.3101,2446.4,2446.2,0.81735]
[1751449128356,25.54237,2446.3,2446.2,0.81735]
[1751449129364,0.81739,2446.2,2446.1,1.7771]
[1751449134458,0.81739,2446.2,2446.1,0.9597]
[1751449134859,24.725,2446.3,2446.0,32.74633]
[1751449134860,0.81742,2446.1,2446.0,32.74633]
[1751449135062,26.44992,2446.1,2446.0,32.74633]
[1751449140264,26.44992,2446.1,2446.0,31.9289]
[1751449141565,26.44992,2446.1,2446.0,32.74635]
[1751449142267,26.44992,2446.1,2446.0,31.81745]
[1751449145966,26.44992,2446.1,2446.0,31.0]
[1751449146266,26.44992,2446.1,2446.0,31.81745]
[1751449150773,26.44992,2446.1,2446.0,31.0]
[1751449150974,26.44992,2446.1,2446.0,31.81745]
[1751449152469,26.44992,2446.1,2446.0,31.0]
[1751449152674,26.44592,2446.1,2446.0,31.81745]
[1751449163087,0.9115,2446.1,2446.0,31.81745]
[1751449163386,0.81738,2446.3,2446.2,0.81735]
[1751449163587,37.02138,2446.3,2446.2,0.81735]
[1751449163786,37.02138,2446.3,2446.2,2.46336392]
[1751449164089,37.02138,2446.3,2446.2,3.42576392]
[1751449164284,38.66739392,2446.3,2446.2,0.9624]
[1751449164484,38.66739392,2446.3,2446.2,1.77978]
[1751449164684,38.66739392,2446.3,2446.2,0.9624]
[1751449165288,37.02138,2446.3,2446.2,1.77978]
[1751449165992,0.81738,2446.3,2446.2,1.77978]
[1751449166283,0.81734,2446.4,2446.3,0.81732]
[1751449166488,24.716,2446.4,2446.3,0.81735]
[1751449166984,0.81735,2446.3,2446.2,3.42577392]
[1751449167789,25.53333,2446.4,2446.3,0.81735]
[1751449168192,7.94514,2446.6,2446.2,3.00583]
[1751449168193,5.902,2446.6,2446.2,3.00583]
[1751449168391,24.716,2446.5,2446.4,0.81729]
[1751449168593,24.716,2446.5,2446.4,2.46330392]
[1751449168893,25.53328,2446.5,2446.4,2.46330392]
[1751449169087,25.53328,2446.5,2446.4,1.64601392]
[1751449169591,25.53328,2446.5,2446.4,2.46333392]
[1751449169790,25.53328,2446.5,2446.4,0.81732]
[1751449170087,0.81732,2446.4,2446.3,2.24933]
[1751449170489,25.5333,2446.5,2446.4,0.81732]
[1751449171590,0.81742,2446.2,2446.1,0.8174]
[1751449171791,0.81742,2446.1,2446.0,31.81743]
[1751449172091,1.72002,2446.1,2446.0,31.81743]
[1751449172293,1.72002,2446.1,2446.0,31.0]
[1751449172689,3.12962,2446.1,2446.0,31.0]
[1751449173294,3.12962,2446.1,2446.0,30.99387868]
[1751449175388,2.3122,2446.1,2446.0,30.99387868]
[1751449175696,3.12962,2446.1,2446.0,31.81132868]
[1751449175896,37.1076,2446.1,2446.0,31.81132868]
[1751449176091,37.92502,2446.1,2446.0,32.76102868]
[1751449176893,37.92502,2446.1,2446.0,31.94357868]
[1751449177191,40.27623449,2446.1,2446.0,30.99387868]
[1751449177393,41.66073449,2446.1,2446.0,30.99387868]
[1751449177694,39.30952,2446.1,2446.0,30.99387868]
[1751449177889,39.30952,2446.1,2446.0,31.81132868]
[1751449178084,39.30952,2446.1,2446.0,30.99387868]
[1751449178487,41.66073449,2446.1,2446.0,30.99387868]
[1751449179396,5.45573449,2446.1,2446.0,30.99387868]
[1751449179696,3.10452,2446.1,2446.0,30.99387868]
[1751449179891,37.94102,2446.1,2446.0,30.99387868]
[1751449180193,37.94802,2446.1,2446.0,30.99387868]
[1751449182992,1.72002,2446.1,2446.0,30.99387868]
[1751449183192,37.94302,2446.1,2446.0,30.99387868]
[1751449187299,39.32992,2446.1,2446.0,30.99387868]
[1751449188594,41.68113449,2446.1,2446.0,30.99387868]
[1751449193998,38.01202,2446.1,2446.0,30.99387868]
[1751449195204,37.10942,2446.1,2446.0,30.99387868]
[1751449195398,40.39233449,2446.1,2446.0,30.99387868]
[1751449195598,41.73843449,2446.1,2446.0,30.99387868]
[1751449197709,39.38722,2446.1,2446.0,30.99387868]
[1751449198008,38.05412,2446.1,2446.0,30.99387868]
[1751449201403,46.296586,2446.1,2446.0,30.99387868]
[1751449202409,9.991586,2446.1,2446.0,30.99387868]
[1751449202711,46.301586,2446.1,2446.0,30.99387868]
[1751449205710,45.369886,2446.1,2446.0,30.99387868]
[1751449205914,33.857886,2446.1,2446.0,30.99387868]
[1751449206112,33.857886,2446.1,2446.0,34.25397868]
[1751449206315,9.059886,2446.1,2446.0,37.42264317]
[1751449206513,8.242466,2446.1,2446.0,42.42264317]
[1751449206909,8.242466,2446.1,2446.0,72.43464864]
[1751449207109,11.504,2446.4,2446.3,0.81735]
[1751449207312,0.81727,2446.6,2446.3,2.35121449]
[1751449207608,0.81727,2446.6,2446.5,3.16847449]
[1751449208013,0.81727,2446.6,2446.5,5.39847449]
[1751449208815,0.81725,2446.6,2446.5,5.39848449]
[1751449209317,84.48724,2446.7,2446.6,0.81725]
[1751449209515,84.48722,2446.7,2446.6,1.3318]
[1751449209716,58.843,2446.7,2446.6,2.14905]
[1751449209917,83.663,2446.7,2446.6,2.14905]
[1751449210114,11.504,2446.8,2446.7,0.81722]
[1751449210313,11.504,2446.8,2446.7,4.53973449]
[1751449210512,2.93539,2447.2,2446.9,0.81713]
[1751449210513,11.503,2447.2,2446.9,0.81713]
[1751449210818,25.65408,2447.1,2447.0,1.868]
[1751449212416,33.896546,2447.1,2447.0,1.868]
[1751449212819,33.896546,2447.1,2447.0,3.2393]
[1751449213414,33.896546,2447.1,2447.0,4.05642]
[1751449214814,33.896546,2447.1,2447.0,3.2393]
[1751449215309,33.896546,2447.1,2447.0,4.05642]
[1751449215816,9.059546,2447.1,2447.0,4.05642]
[1751449216015,33.883546,2447.1,2447.0,4.05642]
[1751449217817,8.242466,2447.1,2447.0,4.05642]
[1751449218115,8.242466,2447.1,2447.0,9.29183076]
[1751449219313,11.534,2447.4,2447.3,0.81702]
[1751449220020,11.534,2447.4,2447.3,3.22202]
[1751449221720,12.35098,2447.4,2447.3,3.22202]
[1751449221920,11.534,2447.4,2447.3,3.22202]
[1751449222421,12.35098,2447.4,2447.3,3.22202]
[1751449222716,20.593446,2447.4,2447.3,3.22202]
[1751449224617,19.776466,2447.4,2447.3,3.22202]
[1751449226216,8.242466,2447.4,2447.3,13.49932154]
[1751449227019,4.387398,2447.4,2447.3,13.49932154]
[1751449227619,4.387398,2447.4,2447.3,13.6219031]
[1751449231420,3.480118,2447.4,2447.3,13.6219031]
[1751449237627,1.72419,2448.0,2447.3,13.6219031]
[1751449237628,0.9074,2448.0,2447.9,0.81682]
[1751449237830,0.9074,2448.0,2447.9,3.16803449]
[1751449238523,0.9074,2448.0,2447.9,8.50356999]
[1751449239118,0.9805,2448.3,2448.2,0.81672]
[1751449239324,1.79718,2448.3,2448.2,0.81672]
[1751449239525,4.09188,2448.3,2448.2,0.81672]
[1751449240328,3.2752,2448.3,2448.2,0.81672]
[1751449240528,4.09188,2448.3,2448.2,0.81672]
[1751449240722,12.334346,2448.3,2448.2,0.81672]
[1751449242226,11.517666,2448.3,2448.2,0.81672]
[1751449242421,12.334346,2448.3,2448.2,0.81672]
[1751449243929,0.81681,2448.1,2448.0,0.81675]
[1751449245233,9.059276,2448.1,2448.0,0.81675]
[1751449256648,8.242466,2448.1,2448.0,0.81675]
[1751449257048,9.059216,2448.1,2448.0,0.81675]
[1751449257253,8.242466,2448.1,2448.0,0.81675]
[1751449262153,9.059216,2448.1,2448.0,0.81675]
[1751449266250,0.81685,2447.9,2447.8,0.8168]
[1751449266654,2.21825,2447.9,2447.8,0.8168]
[1751449267956,0.81685,2447.9,2447.8,0.8168]
[1751449268751,1.71261,2448.0,2447.9,0.81682]
[1751449270157,9.955076,2448.0,2447.9,0.81682]
[1751449271459,9.955076,2448.0,2447.9,3.16803449]
[1751449271460,9.138266,2448.0,2447.9,3.16803449]
[1751449271758,9.955046,2448.0,2447.9,3.16803449]
[1751449276061,8.242466,2448.0,2447.9,3.16803449]
[1751449284666,9.059246,2448.0,2447.9,3.16803449]
[1751449284866,8.242466,2448.0,2447.9,3.16803449]
[1751449287366,9.059246,2448.0,2447.9,3.16803449]
[1751449287766,8.242466,2448.0,2447.9,3.16803449]
[1751449288367,9.059246,2448.0,2447.9,3.16803449]
[1751449289568,8.242466,2448.0,2447.9,3.16803449]
[1751449291867,8.242466,2448.0,2447.9,4.61303449]
[1751449292069,8.242466,2448.0,2447.9,9.83621728]
[1751449299470,8.242466,2448.0,2447.9,7.48500279]
[1751449299670,8.242466,2448.0,2447.9,4.61303449]
[1751449300772,8.242466,2448.0,2447.9,3.16803449]
[1751449302365,8.242466,2448.0,2447.9,0.81682]
[1751449302571,9.059246,2448.0,2447.9,0.81682]
[1751449303075,11.385946,2448.0,2447.9,0.81682]
[1751449315178,9.059246,2448.0,2447.9,0.81682]
[1751449315382,8.242466,2448.0,2447.9,0.81682]
[1751449316182,9.059246,2448.0,2447.9,0.81682]
[1751449316882,9.059246,2448.0,2447.9,3.16803449]
[1751449317382,10.481446,2448.0,2447.9,3.16803449]
[1751449318387,9.664666,2448.0,2447.9,3.16803449]
[1751449319283,10.481446,2448.0,2447.9,3.16803449]
[1751449320081,9.664666,2448.0,2447.9,3.16803449]
[1751449320686,10.481446,2448.0,2447.9,3.16803449]
[1751449321286,9.664666,2448.0,2447.9,3.16803449]
[1751449321487,10.481446,2448.0,2447.9,3.16803449]
[1751449326892,9.059246,2448.0,2447.9,3.16803449]
[1751449327186,8.242466,2448.0,2447.9,3.16803449]
[1751449327481,9.059246,2448.0,2447.9,3.16803449]
[1751449328186,8.242466,2448.0,2447.9,3.16803449]
[1751449329783,9.059266,2448.0,2447.9,0.81682]
[1751449329989,8.242466,2448.0,2447.9,0.81682]
[1751449330478,8.242466,2448.0,2447.9,1.69732]
[1751449342297,8.242466,2448.0,2447.9,7.01122748]
[1751449342496,8.242466,2448.0,2447.9,9.38522748]
[1751449354714,8.242466,2448.0,2447.9,7.94652748]
[1751449357916,8.242466,2448.0,2447.9,11.23291364]
[1751449377424,8.242466,2448.0,2447.9,11.35546516]
[1751449380325,8.242466,2448.0,2447.9,6.04155768]
[1751449380721,8.242466,2448.0,2447.9,30.74555768]
[1751449381024,8.242466,2448.0,2447.9,6.04155768]
[1751449381227,8.242466,2448.0,2447.9,30.74555768]
[1751449382524,8.242466,2448.0,2447.9,2.75517152]
[1751449382724,8.242466,2448.0,2447.9,30.74555768]
[1751449384632,8.242466,2448.0,2447.9,0.93937152]
[1751449384830,8.242466,2448.0,2447.9,2.46001308]
[1751449385530,8.242466,2448.0,2447.9,2.32001308]
[1751449388632,8.242466,2448.0,2447.9,3.96320616]
[1751449390933,8.242466,2448.0,2447.9,9.33445152]
[1751449391334,8.242466,2448.0,2447.9,10.30615152]
[1751449393938,8.242466,2448.0,2447.9,9.36688311]
[1751449400339,8.242466,2448.0,2447.9,9.48943463]
[1751449400640,8.242466,2448.0,2447.9,11.83655238]
[1751449401038,8.242466,2448.0,2447.9,13.19225238]
[1751449402041,0.90092132,2448.2,2448.1,0.81675]
[1751449402241,0.90092132,2448.2,2448.1,27.86286775]
[1751449402437,0.90092132,2448.2,2448.1,33.13414202]
[1751449402838,0.90092132,2448.2,2448.1,33.25669354]
[1751449403940,0.00612132,2448.2,2448.1,33.25669354]
[1751449404136,3.2479,2448.8,2448.7,0.81655]
[1751449404334,0.9896,2448.8,2448.7,3.16366775]
[1751449404539,0.9896,2448.8,2448.7,33.14676116]
[1751449405640,2.2583,2449.1,2449.0,0.81645]
[1751449405840,2.2583,2449.1,2449.0,3.16356775]
[1751449407344,0.9887,2449.4,2449.3,0.81635]
[1751449407543,0.9887,2449.4,2449.3,3.16346775]
[1751449409142,0.9887,2449.4,2449.3,0.81635]
[1751449409441,9.231166,2449.4,2449.3,0.81635]
[1751449410244,9.231166,2449.4,2449.3,3.16346775]
[1751449418047,8.242466,2449.4,2449.3,8.70160928]
[1751449425052,8.242466,2449.4,2449.3,3.28594922]
[1751449429556,8.242466,2449.4,2449.3,8.67028803]
[1751449430154,8.242466,2449.4,2449.3,33.35028803]
[1751449445958,8.242466,2449.4,2449.3,33.34328803]
[1751449447257,8.242466,2449.4,2449.3,8.67028803]
[1751449447561,8.242466,2449.4,2449.3,44.81128803]
[1751449448461,8.242466,2449.4,2449.3,44.81028803]
[1751449449360,8.242466,2449.4,2449.3,39.42594922]
[1751449449561,8.242466,2449.4,2449.3,3.28594922]
[1751449449858,8.242466,2449.4,2449.3,39.42594922]
[1751449453163,8.242466,2449.4,2449.3,44.80488909]
[1751449454664,7.382036,2449.4,2449.3,44.80488909]
[1751449454855,6.556156,2449.4,2449.3,44.80488909]
[1751449455058,5.637966,2449.4,2449.3,44.80488909]
[1751449457267,0.9491,2449.9,2449.8,0.81618]
[1751449457461,0.9491,2449.9,2449.8,25.48518]
[1751449457662,2.3782,2449.9,2449.8,30.91308252]
[1751449457962,2.3782,2449.9,2449.8,32.55379183]
[1751449459768,2.3782,2449.9,2449.8,33.25699606]
[1751449460255,10.620666,2449.9,2449.8,33.25699606]
[1751449460661,10.620666,2449.9,2449.8,33.25599606]
[1751449461665,9.191566,2449.9,2449.8,33.37845253]
[1751449461861,7.325796,2449.9,2449.8,35.72236607]
[1751449462163,1.3536,2450.4,2449.9,2.04038]
[1751449462466,0.9541,2450.3,2450.2,3.15995354]
[1751449462964,0.9541,2450.3,2450.2,44.79544755]
[1751449463865,0.9541,2450.3,2450.2,39.41741001]
[1751449464264,0.9541,2450.3,2450.2,44.78786021]
[1751449465069,9.196566,2450.3,2450.2,44.78786021]
[1751449468267,9.196566,2450.3,2450.2,8.65286021]
[1751449468471,9.196566,2450.3,2450.2,44.78186021]
[1751449469473,9.196566,2450.3,2450.2,8.65286021]
[1751449469669,9.196566,2450.3,2450.2,44.77986021]
[1751449472975,9.196566,2450.3,2450.2,39.40841001]
[1751449473875,9.196566,2450.3,2450.2,3.28241001]
[1751449474077,9.196566,2450.3,2450.2,39.40741001]
[1751449474573,9.196566,2450.3,2450.2,3.28241001]
[1751449474774,9.196566,2450.3,2450.2,39.40741001]
[1751449475175,9.196566,2450.3,2450.2,36.94104]
[1751449480380,9.196566,2450.3,2450.2,0.81604]
[1751449480580,9.196566,2450.3,2450.2,36.94004]
[1751449480882,9.196566,2450.3,2450.2,0.81604]
[1751449481185,9.196566,2450.3,2450.2,36.94004]
[1751449481388,9.196566,2450.3,2450.2,0.81604]
[1751449481682,9.196566,2450.3,2450.2,36.94004]
[1751449481982,9.196566,2450.3,2450.2,0.81604]
[1751449482184,9.196566,2450.3,2450.2,36.94004]
[1751449483279,14.196566,2450.3,2450.2,0.81604]
[1751449483485,9.196566,2450.3,2450.2,25.47704]
[1751449488090,9.196566,2450.3,2450.2,0.81604]
[1751449506606,8.242466,2450.3,2450.2,5.99974411]
[1751449506813,8.242466,2450.3,2450.2,8.44118059]
[1751449509408,8.242466,2450.3,2450.2,3.25747648]
[1751449517412,8.242466,2450.3,2450.2,8.49568837]
[1751449522205,8.242466,2450.3,2450.2,8.77587935]
[1751449522410,8.242466,2450.3,2450.2,44.89087935]
[1751449524012,7.404476,2450.3,2450.2,44.89087935]
[1751449539818,0.81558,2451.7,2451.4,0.81563]
[1751449540027,2.2751,2451.4,2451.3,2.45627098]
[1751449540725,2.2751,2451.4,2451.2,2.45629098]
[1751449540928,1.3669,2451.3,2451.2,0.8157]
[1751449541225,2.2585,2451.3,2451.2,0.8157]
[1751449542921,10.500966,2451.3,2451.2,0.8157]
[1751449550132,11.316646,2451.3,2451.2,0.8157]